[Event "67th Mexican-ch Open 2022"]
[Site "Chihuahua"]
[Date "2022.04.14"]
[Round "3.24"]
[White "Garduno Huerta, Joshua Emiliano"]
[Black "Quiroga Jaquez, Angel Ivan"]
[Result "1-0"]
[ECO "D40"]
[WhiteElo "1622"]
[BlackElo "2185"]
[Annotator "TA"]
[PlyCount "117"]
[EventDate "2022.04.12"]
[EventType "swiss"]
[EventCountry "MEX"]
[SourceTitle "playchess.com"]
[Source "ChessBase"]
[SourceQuality "1"]
[TimeControl "5400+30"]

{[%evp 19,117,17,17,17,39,35,43,10,5,-12,-16,-19,143,133,190,206,187,183,212,106,141,108,112,108,128,111,136,119,127,113,152,123,111,68,74,48,55,15,21,22,13,0,0,0,0,0,0,0,7,20,20,15,94,23,24,23,27,18,22,31,25,30,59,0,41,8,8,8,8,8,29968,29969,29969,29970,29969,29971,29971,29972,29972,29973,29972,29974,29974,29975,29975,0,0,0,29975,29976,29976,29977,29977,29978,29978,29979,29979,29980,29986,29976]} 1. d4 {[%emt 0:00:30]} Nf6 {[%emt 0:05:16]} 2. c4 {[%emt 0:00:00]} e6 {[%emt 0:00:38]} 3. Nc3 {[%emt 0:00:08]} d5 {[%emt 0:00:31]} 4. Nf3 {[%emt 0:02:48]} Be7 {[%emt 0:01:09]} 5. e3 {[%emt 0:01:52]} O-O {[%emt 0:01:03]} 6. Bd3 {[%emt 0:01:12]} c5 {[%emt 0:01:52]} 7. cxd5 {[%emt 0:02:50]} exd5 {[%emt 0:01:34]} 8. dxc5 {[%emt 0:00:11]} Nc6 {[%emt 0:00:21]} 9. O-O {[%emt 0:00:26]} Bxc5 {[%emt 0:01:38]} 10. a3 {[%emt 0:01:41]} a6 {[%emt 0:08:26]} 11. b4 {[%emt 0:01:39] D40: Queen's Gambit Declined: Semi-Tarrasch with 5 e3.} Bd6 {[%emt 0:01:16]} 12. Bb2 {[%emt 0:00:34]} Ne5 {[%emt 0:01:17]} 13. Be2 {[%emt 0:01:31] White is slightly better.} Nc4 {[%emt 0:02:03]} 14. Bxc4 {[%emt 0:01:16]} dxc4 {[%emt 0:00:07] [#]} 15. e4 $146 {[%emt 0:04:39][%cal Be3e4,Be4e5][%mdl 32]} ({Predecessor:} 15. Qd4 Be6 16. Rad1 Be7 17. Qe5 Nd7 18. Qg3 Bf6 19. Nd4 Qe7 20. f4 Bxd4 21. Rxd4 f6 22. e4 {1-0 (41) Belov,I (2440)-Zolnierowicz,K (2355) Katowice 1993}) 15... Qc7 $2 {[%emt 0:11:19]} (15... Bg4 $11) 16. Qd4 $1 $16 {[%emt 0:09:34]} Ne8 {[%emt 0:18:19]} (16... Be7 $16) 17. e5 $18 {[%emt 0:17:35]} Be7 {[%emt 0:00:20]} 18. Nd5 {[%emt 0:00:26]} Qd8 {[%emt 0:01:24]} 19. Nb6 {[%emt 0:08:06]} ({Resist} 19. Qxc4 $6 Be6 $16) (19. Rad1 $18) 19... Qxd4 {[%emt 0:00:35]} 20. Nxd4 {[%emt 0:00:21]} Rb8 {[%emt 0:00:20]} 21. Rac1 {[%emt 0:06:22]} Bd8 {[%emt 0:06:44]} 22. Nxc4 {[%emt 0:01:36] 0x0.000e62c4cf4ddp-1022s more active pieces.} Nc7 {[%emt 0:00:43]} 23. Nb6 {[%emt 0:05:00][%cal Oe5e6] Threatens to win with e6!} Bg4 {[%emt 0:00:59] Prevents e6.} 24. h3 {[%emt 0:01:55]} Nb5 {[%emt 0:05:11]} 25. Nc4 {[%emt 0:08:44]} Bd7 {[%emt 0:01:37]} 26. Rfd1 {[%emt 0:06:48]} Bg5 {[%emt 0:00:49]} 27. Rc2 {[%emt 0:01:28]} Rfd8 {[%emt 0:05:37]} 28. Nxb5 {[%emt 0:04:11]} (28. Re2 $5 {[%cal Re2e1]}) 28... Bf5 {[%emt 0:00:59] This bishop pair is nice.} 29. Rxd8+ {[%emt 0:01:20]} Rxd8 {[%emt 0:00:07]} 30. Nd4 {[%emt 0:03:25]} Bxc2 {[%emt 0:01:32]} 31. Nxc2 {[%emt 0:00:03] Strongly threatening Nd6.} Rd1+ {[%emt 0:00:07]} 32. Kh2 {[%emt 0:00:12]} b5 {[%emt 0:00:13]} 33. N4e3 {[%emt 0:01:14]} Rd2 {[%emt 0:00:07] ...Bxe3 is the strong threat.} 34. Bc3 {[%emt 0:04:47]} Rxf2 {[%emt 0:00:14]} 35. Kg3 {[%emt 0:00:28]} Rf4 {[%emt 0:03:08]} (35... Bxe3 $11 36. Nxe3 Ra2) 36. Bd2 {[%emt 0:02:04]} ({White should play} 36. Ne1 $1 $16 {[%cal Re1d3]}) 36... Re4 $11 {[%emt 0:02:38][%cal Bf4e4,Be4e5,Be5d5][%mdl 32]} 37. Kf3 {[%emt 0:00:27]} Rxe5 {[%emt 0:00:48] [#]} 38. Ng4 $1 {[%emt 0:00:23]} Rd5 {[%emt 0:00:38]} (38... Rf5+ 39. Ke4) 39. Bxg5 {[%emt 0:00:13]} Rxg5 {[%emt 0:00:03]} 40. Nce3 {[%emt 0:02:31]} h5 {[%emt 0:00:43]} 41. Kf4 {[%emt 0:00:00]} f6 {[%emt 0:00:29] [#]} (41... Rg6 $5 {[%cal Rh5g4]} 42. Ne5 Rf6+ 43. Ke4 Rf2 $11) 42. h4 $1 {[%emt 0:00:00] And now Nxf6+ would win.} Rxg4+ {[%emt 0:03:09]} 43. Nxg4 {[%emt 0:00:00]} hxg4 {[%emt 0:00:09]} 44. Kxg4 {[%emt 0:00:00][%mdl 4096] Endgame Intending Kf5 and mate. KP-KP} Kh7 $2 {[%emt 0:04:57][%mdl 8192]} (44... g6 $11) 45. Kf5 $1 {[%emt 0:00:00]} Kh6 {[%emt 0:00:26]} 46. g4 {[%emt 0:00:31]} Kh7 {[%emt 0:00:08]} 47. g5 {[%emt 0:01:16]} fxg5 {[%emt 0:00:14]} 48. hxg5 {[%emt 0:00:01] K3P-K3P} Kg8 {[%emt 0:02:17]} 49. Ke6 {[%emt 0:01:00]} Kf8 {[%emt 0:00:25]} 50. g6 {[%emt 0:01:08]} Ke8 {[%emt 0:00:09]} 51. Kd6 {[%emt 0:00:02]} Kd8 {[%emt 0:11:12] [#]} 52. Ke6 $2 {[%emt 0:00:20]} (52. Kc6 $1 {mates} Ke7 53. Kb7 Kf6 54. Kxa6 Kxg6 55. Kxb5 Kf5 56. Kc4 Ke5 57. a4) 52... Ke8 $1 {[%emt 0:00:00]} 53. Kd6 $2 {[%emt 0:00:16][%mdl 8192]} (53. Kd5 $11 Kd7 54. Kc5) 53... Kd8 {[%emt 0:00:00] [#]} 54. Kc6 $1 {[%emt 0:00:26] White mates.} Ke7 {[%emt 0:00:00]} 55. Kb6 {[%emt 0:00:10]} Kf6 {[%emt 0:00:00]} 56. Kxa6 {[%emt 0:00:04]} Kxg6 {[%emt 0:00:00]} 57. Kxb5 {[%emt 0:00:03]} Kf5 {[%emt 0:00:00]} 58. Kc4 {[%emt 0:00:43]} Kf4 {[%emt 0:00:00]} 59. Kd3 {[%emt 0:00:08] Weighted Error Value: White=0.22 (precise) /Black=0.27 (precise)} 1-0

[Event "67th Mexican-ch Open 2022"]
[Site "Chihuahua"]
[Date "2022.04.14"]
[Round "3.25"]
[White "Padilla Garcia, Cecilia Xasive"]
[Black "Corrales Jimenez, Zenia"]
[Result "1-0"]
[ECO "B23"]
[WhiteElo "1834"]
[BlackElo "2151"]
[Annotator "TA"]
[PlyCount "57"]
[EventDate "2022.04.12"]
[EventType "swiss"]
[EventCountry "MEX"]
[SourceTitle "playchess.com"]
[Source "ChessBase"]
[SourceQuality "1"]
[TimeControl "5400+30"]

{[%evp 16,57,109,73,117,125,112,97,141,136,141,148,135,86,139,97,197,197,221,191,191,103,195,157,279,270,655,626,1244,1233,29992,29993,29993,29990,29987,2932,29997,29996,29996,29997,29997,29998,29998,29999]} 1. e4 {[%emt 0:00:04]} c5 {[%emt 0:03:08]} 2. Nc3 {[%emt 0:00:22]} Nc6 {[%emt 0:01:34]} 3. Bb5 {[%emt 0:00:08]} g6 {[%emt 0:04:28]} 4. Bxc6 {[%emt 0:00:41]} bxc6 {[%emt 0:01:01]} 5. d3 {[%emt 0:00:39]} Bg7 {[%emt 0:00:19]} 6. f4 {[%emt 0:01:00]} d6 {[%emt 0:04:43]} 7. Nf3 {[%emt 0:00:40]} e6 {[%emt 0:00:29]} 8. O-O {[%emt 0:03:05]} Ne7 {[%emt 0:00:05]} 9. Qe1 {[%emt 0:02:02]} Rb8 {[%emt 0:05:34] B23: Closed Sicilian: Lines without g3.} 10. b3 {[%emt 0:03:52]} O-O {[%emt 0:01:40]} 11. Bb2 {[%emt 0:03:22]} Ba6 {[%emt 0:11:02] White is better.} 12. Na4 {[%emt 0:10:09]} Bxb2 {[%emt 0:02:02]} 13. Nxb2 {[%emt 0:01:05] [#] Pair of Knights!} f6 $146 {[%emt 0:11:59]} ({Predecessor:} 13... d5 14. c4 Rb4 15. Qh4 f6 16. g4 Nc8 17. e5 f5 18. Qxd8 Rxd8 19. Ng5 Re8 20. gxf5 exf5 {½-½ (51) Ermis,M (1875)-Yilmaz,G (2172) Ankara 2017}) 14. Qg3 {[%emt 0:22:26]} (14. Qf2 $142) 14... Kg7 {[%emt 0:08:52]} ({Black should play} 14... Qd7) 15. h4 {[%emt 0:04:03]} d5 {[%emt 0:01:16]} (15... Kh8 $16 {was necessary.}) 16. c4 $18 {[%emt 0:05:48]} Qa5 {[%emt 0:07:55]} 17. Rfc1 {[%emt 0:08:37]} Rbd8 {[%emt 0:04:53]} 18. h5 {[%emt 0:02:46]} (18. Na4 $18) 18... Kf7 {[%emt 0:01:53]} (18... Kh8 $16 {is a better defense.}) 19. Qh3 {[%emt 0:15:02]} Rg8 {[%emt 0:16:17]} (19... Kg7 $16 20. Na4 (20. Qxe6 Qc7 $16) 20... Bc8) 20. e5 {[%emt 0:04:36]} g5 $2 {[%emt 0:03:20] [#]} (20... Nf5 21. g4 Nd4 22. Nxd4 cxd4 23. hxg6+ hxg6) 21. exf6 {[%emt 0:01:42]} g4 {[%emt 0:01:25]} 22. Ne5+ {[%emt 0:00:15]} Kxf6 {[%emt 0:00:04]} 23. Qh4+ {[%emt 0:00:42]} Kf5 {[%emt 0:01:18]} 24. Qxe7 {[%emt 0:00:19][%cal Re7f7]} Rdf8 {[%emt 0:00:30]} 25. g3 {[%emt 0:02:04]} (25. Nf7 $142 Qd8 26. Nxd8 Bc8 27. Nxc6 Bd7 28. Qxd7 Kxf4 29. Rf1+ Kg3 30. Qd6+ Kh4 31. g3+ Kh3 32. Rxf8) 25... Bc8 {[%emt 0:03:10]} 26. Nxc6 {[%emt 0:05:22] White mates.} Qd2 {[%emt 0:00:56] [#]} 27. Re1 $1 {[%emt 0:00:20][%csl Gc6,Gf4][%cal Re1e5]} Qxb2 {[%emt 0:01:49]} (27... Qc3 28. Re5+) 28. Re5+ {[%emt 0:00:04]} Qxe5 {[%emt 0:00:05]} 29. fxe5 {[%emt 0:01:14] Weighted Error Value: White=0.18 (very precise) /Black=1.07} 1-0

[Event "67th Mexican-ch Open 2022"]
[Site "Chihuahua"]
[Date "2022.04.14"]
[Round "3.26"]
[White "Ruiz Villalba, Andrea"]
[Black "Guerrero Rodriguez, Alejandra"]
[Result "0-1"]
[ECO "C02"]
[WhiteElo "1831"]
[BlackElo "2019"]
[Annotator "TA"]
[PlyCount "118"]
[EventDate "2022.04.12"]
[EventType "swiss"]
[EventCountry "MEX"]
[SourceTitle "playchess.com"]
[Source "ChessBase"]
[SourceQuality "1"]
[TimeControl "5400+30"]

{[%evp 13,118,0,50,50,51,36,76,77,179,187,169,172,168,160,186,188,195,185,208,142,264,255,252,254,266,204,227,219,343,156,151,158,172,171,183,175,189,195,194,187,199,163,165,170,176,163,169,120,121,128,136,135,150,132,169,123,110,0,79,79,77,58,83,-27,-27,-442,-417,-416,-416,-559,-559,-704,-352,-760,-340,-2019,-1567,-903,-873,-2454,-1943,-12250,-10313,-29963,-29964,-29964,-29965,-29965,-29967,-29966,-29967,-29972,-29965,-29977,-29978,-29980,-29981,-29981,-29981,-29981,-29982,-29983,-29983,-29985,-29986,-29986,-29985]} 1. e4 {[%emt 0:05:30]} e6 {[%emt 0:01:51]} 2. d4 {[%emt 0:00:29]} c5 {[%emt 0:00:12]} 3. c3 {[%emt 0:00:47]} d5 {[%emt 0:02:53]} 4. e5 {[%emt 0:00:15]} Nc6 {[%emt 0:00:36]} 5. Nf3 {[%emt 0:00:19]} Qb6 {[%emt 0:00:56]} 6. a3 {[%emt 0:01:15]} f6 {[%emt 0:07:27]} 7. Bd3 {[%emt 0:03:06]} Bd7 {[%emt 0:02:16]} (7... fxe5 $11 8. Nxe5 Nf6) 8. O-O $14 {[%emt 0:02:42] The main line 8.0-0 scores better than 8.b4. C02: French: Advance Variation.} c4 {[%emt 0:04:02]} 9. Bc2 {[%emt 0:00:34]} Be7 {[%emt 0:00:10] [#]} 10. Nbd2 $146 {[%emt 0:26:43][%cal Bb1d2,Bd2b3,Bb3c5][%mdl 32] White is better.} ({Predecessor:} 10. Re1 fxe5 11. dxe5 Bc5 12. Re2 Nge7 13. Nbd2 O-O-O 14. b4 cxb3 15. Nxb3 a6 16. Rb1 {1-0 (37) Nunez,P (1496)-Miranda Fernandez,M (1144) Asuncion 2019}) 10... Nh6 {[%emt 0:07:56]} (10... fxe5 $16 11. Nxe5 Nxe5 12. dxe5 O-O-O) 11. exf6 $18 {[%emt 0:08:21]} Bxf6 {[%emt 0:00:47]} 12. b3 {[%emt 0:00:19]} cxb3 {[%emt 0:05:46]} 13. Nxb3 {[%emt 0:00:07] Black must now prevent Nc5.} Nf7 {[%emt 0:06:57]} 14. Nc5 {[%emt 0:05:01] aiming for Rb1.} Qc7 {[%emt 0:04:07]} 15. Re1 {[%emt 0:02:29]} Ncd8 {[%emt 0:01:33]} 16. Ba4 {[%emt 0:23:34]} b5 {[%emt 0:00:40]} (16... Bxa4 $16 17. Qxa4+ Qc6) 17. Bb3 {[%emt 0:01:16]} O-O {[%emt 0:00:59] [#]} 18. Bf4 $1 {[%emt 0:00:16][%mdl 512]} Qc8 {[%emt 0:05:20]} (18... Qxf4 19. Nxd7) 19. a4 {[%emt 0:04:57]} bxa4 {[%emt 0:06:54]} 20. Bxa4 {[%emt 0:00:01]} Nc6 {[%emt 0:03:46]} (20... Be8 {was worth a try.} 21. Bxe8 Rxe8) 21. Bxc6 {[%emt 0:02:56]} (21. c4 $18 {is more deadly.}) 21... Qxc6 $16 {[%emt 0:00:38]} 22. Ra6 {[%emt 0:00:02]} Qc8 {[%emt 0:00:27]} 23. Qa1 {[%emt 0:00:22]} Nd8 {[%emt 0:04:15]} 24. Bd6 {[%emt 0:01:37]} Rf7 {[%emt 0:02:40]} 25. Rxa7 {[%emt 0:00:09]} Rxa7 {[%emt 0:00:12]} 26. Qxa7 {[%emt 0:00:01]} Bc6 {[%emt 0:09:14]} 27. Qb8 {[%emt 0:02:27]} Qxb8 {[%emt 0:00:07]} 28. Bxb8 {[%emt 0:00:02]} Re7 {[%emt 0:02:18]} 29. Bd6 {[%emt 0:00:58]} Ra7 {[%emt 0:04:46]} 30. Nxe6 {[%emt 0:00:54]} (30. h4 $18) 30... Nxe6 {[%emt 0:02:20]} 31. Rxe6 {[%emt 0:00:03]} Bd7 {[%emt 0:00:08]} 32. Re1 {[%emt 0:03:20]} Bf5 {[%emt 0:00:37]} 33. Bb4 {[%emt 0:05:04]} Ra2 {[%emt 0:00:38]} 34. h3 {[%emt 0:00:21]} (34. Be7 $18) 34... Be4 {[%emt 0:00:08]} 35. Nh2 {[%emt 0:00:39]} (35. Ne5 $16) 35... Bg5 {[%emt 0:00:31]} (35... Bh4 $1 $11 36. g3 Bxg3 37. fxg3 Rg2+ 38. Kf1 Rxh2) 36. Ng4 {[%emt 0:00:41]} h5 {[%emt 0:01:38]} 37. Ne3 {[%emt 0:00:21]} Rb2 {[%emt 0:00:27] [#]} 38. f3 {[%emt 0:00:35]} (38. Nc4 $1 $16 Ra2 39. Ne5) 38... Rb1 $11 {[%emt 0:00:30][%mdl 64] Deflection} 39. Rxb1 $4 {[%emt 0:00:36][%mdl 8192] White does not recover from this.} ({Don't blunder} 39. Nd1 $2 {[#]} Bh4 $1 40. Rf1 Bd3 $19) (39. Kf2 $1 $11 {and White is okay.} Bh4+ 40. g3 Rb2+ 41. Kg1 Bxg3 42. fxe4 Bxe1 43. Nxd5) 39... Bxe3+ $19 {[%emt 0:00:02]} 40. Kf1 {[%emt 0:00:14]} Bxb1 {[%emt 0:00:12][%mdl 4096] Endgame} 41. Ke2 {[%emt 0:00:08]} Bf4 {[%emt 0:00:13]} 42. g4 {[%emt 0:00:02]} hxg4 {[%emt 0:01:33]} 43. fxg4 {[%emt 0:00:04]} (43. hxg4 Kf7 44. Bc5) 43... Be4 {[%emt 0:00:11]} 44. Be7 $2 {[%emt 0:01:51]} (44. h4) 44... Kf7 {[%emt 0:00:09]} 45. Bd8 {[%emt 0:00:28]} Ke8 {[%emt 0:00:44]} 46. Ba5 {[%emt 0:00:51]} g5 {[%emt 0:00:43] ...Bg2 is the strong threat.} 47. Kf2 {[%emt 0:00:11] Against Bg2} Kd7 {[%emt 0:00:15]} 48. Bb6 {[%emt 0:00:38]} Kc6 {[%emt 0:00:36] Black mates.} 49. Bd8 {[%emt 0:00:02]} Kb5 {[%emt 0:00:09]} 50. h4 {[%emt 0:01:04]} gxh4 {[%emt 0:00:08]} 51. Bxh4 {[%emt 0:00:03]} Kc4 {[%emt 0:00:07]} 52. Bf6 {[%emt 0:00:42]} Kxc3 {[%emt 0:00:09]} 53. g5 {[%emt 0:00:05]} Kd3 {[%emt 0:00:08]} 54. Be7 {[%emt 0:01:22]} Kxd4 {[%emt 0:00:23]} 55. Bf6+ {[%emt 0:00:29]} Kd3 {[%emt 0:00:08]} 56. Be7 {[%emt 0:00:13]} Be5 {[%emt 0:00:50]} 57. Bd8 {[%emt 0:00:34]} d4 {[%emt 0:00:27][%cal Bd5d4,Bd4d3][%mdl 32]} 58. Ke1 {[%emt 0:00:49]} Kc2 {[%emt 0:00:15]} 59. Bb6 {[%emt 0:00:28]} d3 {[%emt 0:00:16] Weighted Error Value: White=0.73/Black=0.21 (precise)} 0-1

[Event "67th Mexican-ch Open 2022"]
[Site "Chihuahua"]
[Date "2022.04.14"]
[Round "3.27"]
[White "Ortega Beltran, Ximena"]
[Black "Martinez de La Trinidad, Alexandra"]
[Result "1-0"]
[ECO "A22"]
[WhiteElo "1725"]
[BlackElo "1843"]
[Annotator "NA RC"]
[PlyCount "54"]
[EventDate "2022.04.12"]
[EventType "swiss"]
[EventCountry "MEX"]
[SourceTitle "playchess.com"]
[Source "ChessBase"]
[SourceQuality "1"]
[TimeControl "5400+30"]

1. c4 {[%emt 0:00:29]} e5 {[%emt 0:00:00]} 2. g3 {[%emt 0:00:17]} Nf6 {[%emt 0:00:00]} 3. Bg2 {[%emt 0:00:06]} Bc5 {[%emt 0:00:03]} 4. Nc3 {[%emt 0:00:16]} O-O {[%emt 0:00:08]} 5. Nf3 {[%emt 0:03:16]} e4 {[%emt 0:00:22]} 6. Ng5 {[%emt 0:00:09]} Bxf2+ {[%emt 0:00:15]} 7. Kxf2 {[%emt 0:00:07]} Ng4+ {[%emt 0:00:03]} 8. Kg1 {[%emt 0:00:15]} Qxg5 {[%emt 0:00:07]} 9. Nxe4 {[%emt 0:00:07]} Qe7 {[%emt 0:00:10]} 10. h3 {[%emt 0:00:26]} Ne5 {[%emt 0:00:20]} 11. d4 {[%emt 0:14:04]} Nxc4 {[%emt 0:00:30]} 12. Qd3 {[%emt 0:00:13]} Nd6 {[%emt 0:02:27]} 13. Ng5 {[%emt 0:01:39]} f5 {[%emt 0:04:39]} 14. Bd5+ {[%emt 0:05:06]} Kh8 {[%emt 0:00:07]} 15. Qf3 {[%emt 0:02:36]} c6 {[%emt 0:00:42]} 16. Bb3 {[%emt 0:02:33]} Ne4 {[%emt 0:00:50]} 17. Nxh7 {[%emt 0:01:33]} Rd8 {[%emt 0:03:23]} 18. Nf8 {[%emt 0:03:10]} Qe8 {[%emt 0:06:30]} 19. Qxf5 {[%emt 0:02:27]} g6 {[%emt 0:03:00]} 20. Nxg6+ {[%emt 0:05:11]} Kg7 {[%emt 0:00:07]} 21. Bh6+ {[%emt 0:01:16]} Kxh6 {[%emt 0:00:49]} 22. Bf7 {[%emt 0:00:09]} Nxg3 {[%emt 0:02:35]} 23. Qf4+ {[%emt 0:01:40]} Kg7 {[%emt 0:00:05]} 24. Qxg3 {[%emt 0:00:32]} Qe4 {[%emt 0:16:11]} 25. Rf1 {[%emt 0:05:58]} d5 {[%emt 0:02:20]} 26. Ne5+ {[%emt 0:01:18]} Kh8 {[%emt 0:02:53]} 27. Rf4 {[%emt 0:01:15]} Kh7 1-0

[Event "67th Mexican-ch Open 2022"]
[Site "Chihuahua"]
[Date "2022.04.15"]
[Round "4.1"]
[White "Cori Quispe, Kevin Joel"]
[Black "Cordova, Emilio"]
[Result "1/2-1/2"]
[ECO "C01"]
[WhiteElo "2492"]
[BlackElo "2534"]
[Annotator "TA"]
[PlyCount "50"]
[EventDate "2022.04.12"]
[EventType "swiss"]
[EventCountry "MEX"]
[SourceTitle "playchess.com"]
[Source "ChessBase"]
[SourceQuality "1"]
[TimeControl "5400+30"]

{[%evp 22,50,0,0,0,0,0,0,6,-3,6,0,0,0,0,0,0,0,0,-4,0,-15,0,-7,0,0,0,0,0,-7,0]} 1. e4 {[%emt 0:00:56]} e6 {[%emt 0:00:37]} 2. d4 {[%emt 0:00:30]} d5 {[%emt 0:00:35]} 3. exd5 {[%emt 0:01:03]} exd5 {[%emt 0:00:08]} 4. Bd3 {[%emt 0:00:06]} Bd6 {[%emt 0:02:09]} 5. Ne2 {[%emt 0:01:31]} Ne7 {[%emt 0:02:41]} 6. O-O {[%emt 0:05:00]} O-O {[%emt 0:02:22]} 7. Bf4 {[%emt 0:01:47]} Bf5 {[%emt 0:04:01]} 8. c3 {[%emt 0:00:48]} c6 {[%emt 0:04:20]} 9. Bxd6 {[%emt 0:03:19]} Qxd6 {[%emt 0:00:43]} 10. Ng3 {[%emt 0:01:20]} Bxd3 {[%emt 0:00:24]} 11. Qxd3 {[%emt 0:00:06]} Nd7 {[%emt 0:00:07]} 12. Nd2 {[%emt 0:01:14] The position is equal.} Qg6 {[%emt 0:00:06] C01: French: Exchange Variation.} 13. Qxg6 {[%emt 0:00:53]} hxg6 {[%emt 0:00:05]} 14. Rfe1 {[%emt 0:00:34]} Rae8 {[%emt 0:00:06]} 15. Kf1 {[%emt 0:00:50][%cal Bg1f1,Bf1e1,Be1e2][%mdl 32]} Nc8 {[%emt 0:00:05]} 16. Rxe8 {[%emt 0:00:50]} Rxe8 {[%emt 0:00:05]} 17. Re1 {[%emt 0:00:13] [#]} Rxe1+ $146 {[%emt 0:00:08]} ({Predecessor:} 17... Nf6 18. Rxe8+ Nxe8 19. Ke2 {½-½ (19) Froehlich,P (2375)-Appleberry,M (2262) Budapest 2000}) 18. Kxe1 $11 {[%mdl 4096] Endgame KNN-KNN} Nd6 {[%emt 0:00:30]} 19. Ke2 Kf8 {[%emt 0:00:30]} 20. Ke1 Ke7 {[%emt 0:00:30]} 21. Ke2 Ke8 {[%emt 0:00:30]} 22. Kd1 Kd8 {[%emt 0:00:30]} 23. b3 b6 {[%emt 0:00:30]} 24. Ke2 Ke7 {[%emt 0:00:30]} 25. Kd1 Kd8 {[%emt 0:00:30] A rather calm draw.  Weighted Error Value: White=0.04 (flawless) /Black=0.03 (flawless)} 1/2-1/2

[Event "67th Mexican-ch Open 2022"]
[Site "Chihuahua"]
[Date "2022.04.15"]
[Round "4.2"]
[White "Salinas Herrera, Pablo"]
[Black "Ibarra Chami, Luis Fernando"]
[Result "1-0"]
[ECO "B51"]
[WhiteElo "2517"]
[BlackElo "2451"]
[Annotator "TA"]
[PlyCount "47"]
[EventDate "2022.04.12"]
[EventType "swiss"]
[EventCountry "MEX"]
[SourceTitle "playchess.com"]
[Source "ChessBase"]
[SourceQuality "1"]
[TimeControl "5400+30"]

{[%evp 9,47,17,15,11,21,20,21,22,25,18,32,21,26,21,56,53,62,66,90,82,92,52,77,64,128,104,100,108,134,125,198,196,269,279,264,262,253,268,268,243]} 1. e4 {[%emt 0:00:03]} c5 {[%emt 0:03:04]} 2. Nf3 {[%emt 0:00:07]} d6 {[%emt 0:00:13]} 3. Bb5+ {[%emt 0:00:05]} Nd7 {[%emt 0:00:44]} 4. a4 {[%emt 0:00:10]} Ngf6 {[%emt 0:02:47]} 5. Nc3 {[%emt 0:00:07]} e6 {[%emt 0:01:30]} 6. d4 {[%emt 0:02:50] B51: Sicilian: Moscow Variation (3 Bb5+) without 3...Bd7.} cxd4 {[%emt 0:01:37]} 7. Qxd4 {[%emt 0:00:12]} Be7 {[%emt 0:07:00]} 8. O-O {[%emt 0:00:18] The position is equal.} O-O {[%emt 0:01:21]} 9. Rd1 {[%emt 0:08:50]} a6 {[%emt 0:04:17] [#] ...e5 is the strong threat.} 10. Be2 {[%emt 0:01:19]} Qc7 {[%emt 0:10:13]} 11. a5 {[%emt 0:01:13] [#]} e5 $146 {[%emt 0:09:29]} ({Predecessor:} 11... Rd8 12. Be3 Ng4 13. Bg5 Ngf6 14. Qc4 Qxc4 15. Bxc4 b5 16. axb6 Nxb6 17. Be2 Bb7 {0-1 (62) Deac,B (2627)-Aronian,L (2781) Bucharest 2021}) 12. Qc4 {[%emt 0:14:17]} Qb8 {[%emt 0:04:44]} 13. Be3 {[%emt 0:01:36]} b5 {[%emt 0:05:31]} 14. axb6 $1 {[%emt 0:00:46]} Nxb6 {[%emt 0:00:07]} 15. Qb4 {[%emt 0:04:34]} Nbd7 {[%emt 0:00:38]} 16. Qxb8 {[%emt 0:00:20] &Bianco is much more active. The black rooks are badly placed.} Nxb8 {[%emt 0:02:55]} (16... Rxb8 $14 17. Rdb1 (17. Bxa6 Bxa6 18. Rxa6 Rxb2 $11) 17... Bb7) 17. Nd2 {[%emt 0:00:27]} Nc6 {[%emt 0:01:21]} 18. Nc4 $36 {[%emt 0:28:48][%mdl 2048] White has strong initiative.} Nb4 {[%emt 0:06:38]} 19. Rac1 {[%emt 0:00:56]} ({Much weaker is} 19. Nxd6 $6 Nxc2 20. Nxc8 Rfxc8 $11) 19... Ne8 {[%emt 0:12:14]} (19... Ng4 $16 {was necessary.}) 20. Na4 $18 {[%emt 0:04:09][%cal Bc3a4,Ba4b6,Bb6d5][%mdl 32]} Bb7 {[%emt 0:01:08]} (20... Rb8 {was called for.} 21. Nab6 Be6) 21. c3 {[%emt 0:00:57] White has a decisive advantage.} Nc6 {[%emt 0:00:16]} 22. Nab6 {[%emt 0:00:20]} Rd8 {[%emt 0:00:15]} 23. Nd5 {[%emt 0:00:29]} h6 {[%emt 0:10:27] [#]} 24. Nxe5 $1 {[%emt 0:02:31][%mdl 512] Weighted Error Value: White=0.04 (flawless) /Black=0.16 (very precise)} 1-0